bitfinex-derivatives/quotes_ETHF0:USTF0_20241017
["timestamp","ask_amount","ask_price","bid_price","bid_amount"]
[1729153539349,42.67116978,2619.7,2619.1,3.0717]
[1729153539552,1.48933978,2619.6,2619.4,0.38185]
[1729153541049,1.48933978,2619.6,2619.2,3.2078]
[1729153541254,1.48933978,2619.6,2619.5,0.38184]
[1729153541550,42.28933978,2619.7,2619.6,0.38183]
[1729153541756,42.28933978,2619.7,2619.6,1.18583]
[1729153541956,42.28933978,2619.7,2619.6,1.1943]
[1729153542155,42.28933978,2619.7,2619.6,1.57613]
[1729153542560,42.28933978,2619.7,2619.4,0.38185]
[1729153542561,43.17346133,2619.7,2619.4,0.38185]
[1729153542857,1.49091016,2619.5,2619.4,0.38185]
[1729153545751,1.89921016,2619.4,2619.3,0.394]
[1729153546564,1.49091016,2619.4,2619.3,0.394]
[1729153547160,2.37347133,2619.6,2619.3,0.394]
[1729153547161,1.49091016,2619.5,2619.3,0.394]
[1729153547363,1.49091016,2619.4,2619.3,0.394]
[1729153551856,1.49091016,2619.4,2619.3,0.77587]
[1729153552063,1.49091016,2619.5,2619.3,0.394]
[1729153552656,1.49091016,2619.4,2619.3,0.394]
[1729153553254,2.77589133,2619.5,2619.2,3.6347]
[1729153553456,1.91347085,2619.3,2619.2,3.6347]
[1729153553657,0.80387,2619.3,2619.2,3.2078]
[1729153553854,6.23124133,2619.3,2619.2,3.2078]
[1729153555865,6.23124133,2619.3,2619.2,3.58969]
[1729153557364,6.23124133,2619.3,2618.9,0.4238]
[1729153557661,1.4915911,2619.1,2619.0,0.38191]
[1729153558062,1.4915911,2619.1,2618.9,0.80572]
[1729153558375,1.4915911,2619.0,2618.8,4.39514]
[1729153558563,1.4915911,2618.9,2618.8,4.39514]
[1729153558868,1.8964911,2618.9,2618.8,4.39514]
[1729153559362,1.8964911,2618.9,2618.8,1.18734]
[1729153560167,0.4049,2618.9,2618.8,1.18734]
[1729153560369,1.4915911,2619.0,2618.8,0.8054]
[1729153560570,1.4915911,2619.0,2618.9,0.38193]
[1729153560967,1.4915911,2619.0,2618.8,0.8054]
[1729153561166,1.4915911,2619.0,2618.9,0.38193]
[1729153562259,1.4915911,2619.0,2618.7,3.2078]
[1729153562465,1.8857911,2619.0,2618.7,0.38196]
[1729153562762,2.2677111,2619.0,2618.6,0.77126]
[1729153563165,1.8857911,2619.0,2618.6,0.3893]
[1729153563372,1.4915911,2619.0,2618.9,0.38193]
[1729153563672,1.4915911,2619.0,2618.8,3.2078]
[1729153563869,1.4915911,2619.0,2618.9,0.38193]
[1729153565673,1.4915911,2619.0,2618.9,0.77253]
[1729153565969,1.4915911,2619.0,2618.9,7.27093]
[1729153566864,1.4915911,2619.2,2619.1,0.3819]
[1729153567462,1.4915911,2619.2,2619.1,0.8031]
[1729153567865,1.4915911,2619.2,2619.1,2.0431]
[1729153568764,1.4915911,2619.2,2619.1,0.4212]
[1729153568969,1.4915911,2619.2,2619.1,2.0431]
[1729153569169,2.7315911,2619.2,2618.9,0.3906]
[1729153569370,2.7315911,2619.2,2618.9,1.6306]
[1729153569371,1.6599,2619.1,2618.9,1.6306]
[1729153569872,0.4199,2619.1,2618.9,0.3906]
[1729153570077,0.4199,2619.1,2618.9,0.77252]
[1729153570588,1.4915911,2619.2,2619.1,0.3819]
[1729153570781,5.61934133,2619.4,2619.1,0.3819]
[1729153570975,5.61934133,2619.4,2619.2,0.8088]
[1729153571477,5.61934133,2619.4,2619.2,1.19069]
[1729153571869,1.99164133,2619.3,2619.2,1.19069]
[1729153572069,5.61934133,2619.4,2619.3,0.38187]
[1729153572270,3.2078,2619.4,2619.3,0.38187]
[1729153572470,4.70009031,2619.4,2619.3,0.80127]
[1729153572886,3.2078,2619.4,2619.3,0.80127]
[1729153573769,1.99164133,2619.5,2619.3,0.4194]
[1729153573965,1.99164133,2619.4,2619.2,3.6185]
[1729153574178,0.38188,2619.3,2618.9,0.38192]
[1729153574475,2.37161878,2619.1,2618.8,3.2078]
[1729153574682,1.49245254,2618.9,2618.8,3.2078]
[1729153574874,1.98970878,2619.0,2618.8,3.2078]
[1729153575071,0.3896,2618.9,2618.8,3.2078]
[1729153575579,2.37930878,2618.9,2618.8,3.2078]
[1729153575883,0.3896,2618.9,2618.8,3.2078]
[1729153576179,0.3896,2618.9,2618.8,3.58974]
[1729153576481,2.37930878,2618.9,2618.8,3.2078]
[1729153576872,2.37930878,2618.9,2618.7,0.4096]
[1729153577076,1.98970878,2618.8,2618.7,0.4096]
[1729153577274,3.8184,2618.8,2618.4,3.2078]
[1729153577476,1.99161086,2618.5,2618.4,3.2078]
[1729153577781,2.48287661,2618.5,2618.4,3.2078]
[1729153578095,43.67107661,2618.5,2618.4,3.5898]
[1729153578280,43.17931431,2618.5,2618.4,3.2078]
[1729153578486,43.17967156,2618.5,2618.4,3.2078]
[1729153579084,43.17967156,2618.5,2618.4,3.5898]
[1729153579588,43.17967156,2618.5,2618.4,3.2078]
[1729153580586,41.1882,2618.5,2618.2,3.4755]
[1729153580776,1.99065089,2618.4,2618.2,3.4755]
[1729153580974,1.99065089,2618.3,2618.2,0.7955]
[1729153581475,1.99065089,2618.4,2618.2,1.17753]
[1729153582283,1.99065089,2618.4,2618.2,0.7955]
[1729153582679,1.49216719,2618.3,2618.2,0.7955]
[1729153583275,1.49216719,2618.3,2618.2,1.17753]
[1729153584084,1.49216719,2618.4,2618.3,0.38202]
[1729153586377,1.88036719,2618.5,2618.3,0.38202]
[1729153586878,1.49216719,2618.4,2618.3,0.38202]
[1729153587681,1.88036719,2618.5,2618.3,0.38202]
[1729153588186,1.88036719,2618.5,2618.2,3.4755]
[1729153588187,1.49216719,2618.6,2618.4,5.8878]
[1729153588373,1.49216719,2618.6,2618.5,0.38199]
[1729153589283,43.19445089,2618.8,2618.5,0.38199]
[1729153589284,1.49216719,2618.7,2618.5,0.38199]
[1729153590281,1.49216719,2618.6,2618.5,0.38199]
[1729153590984,1.49216719,2618.6,2618.4,5.8878]
[1729153591185,1.49216719,2618.6,2618.5,0.38199]
[1729153593387,1.99065089,2618.7,2618.6,0.38197]
[1729153596491,1.99065089,2618.7,2618.5,0.38199]
[1729153596785,1.99065089,2618.7,2618.6,0.38197]
[1729153596986,1.99065089,2618.7,2618.5,0.38198]
[1729153597186,1.99065089,2618.7,2618.4,3.2078]
[1729153597388,1.4926879,2618.5,2618.4,3.5898]
[1729153598684,1.4926879,2618.5,2618.4,6.2698]
[1729153598884,1.4926879,2618.5,2618.4,3.5898]
[1729153603887,1.4926879,2618.5,2618.4,4.8298]
[1729153607487,1.4926879,2618.5,2618.4,4.4478]
[1729153607693,1.4926879,2618.5,2618.4,4.8298]
[1729153610994,1.4926879,2618.6,2618.4,4.4478]
[1729153611293,1.4926879,2618.6,2618.5,1.62199]
[1729153612092,1.4926879,2618.6,2618.5,1.24]
[1729153612290,1.4926879,2618.6,2618.4,4.4478]
[1729153612494,1.49183359,2618.5,2618.4,4.4478]
[1729153613499,1.99065089,2618.6,2618.4,4.8298]
[1729153614291,1.99065089,2618.6,2618.5,1.62199]
[1729153614497,1.99065089,2618.7,2618.5,1.62199]
[1729153614893,1.49247378,2618.6,2618.5,1.62199]
[1729153615393,1.99065089,2618.7,2618.5,1.62199]
[1729153616101,1.99065089,2618.7,2618.5,1.24]
[1729153616300,1.99065089,2618.7,2618.6,0.38197]
[1729153617301,1.99065089,2618.7,2618.6,0.77977]
[1729153618498,2.48287661,2618.8,2618.6,0.77977]
[1729153618704,2.48287661,2618.8,2618.7,4.4478]
[1729153618902,0.80443,2618.9,2618.7,4.4478]
[1729153620005,0.80443,2618.9,2618.7,4.82975]
[1729153621399,1.10371555,2618.9,2618.7,0.38196]
[1729153621593,4.08316748,2618.9,2618.6,1.6378]
[1729153621794,4.08316748,2618.9,2618.6,1.24]
[1729153621795,3.40195193,2618.9,2618.6,1.24]
[1729153622101,3.78389193,2618.9,2618.7,0.38196]
[1729153622596,2.97945193,2618.8,2618.7,0.38196]
[1729153622787,0.80444,2618.9,2618.7,0.38196]
[1729153622788,3.78389193,2618.9,2618.7,0.38196]
[1729153623895,3.40195193,2618.9,2618.8,0.38194]
[1729153624403,3.78389193,2618.9,2618.7,4.82975]
[1729153626096,3.40195193,2618.9,2618.8,0.38194]
[1729153626407,0.4225,2618.9,2618.8,1.62194]
[1729153631202,0.4225,2618.9,2618.8,0.38194]
[1729153631704,0.4225,2618.9,2618.8,1.62194]
[1729153640715,0.4225,2618.9,2618.8,0.38194]
[1729153640906,0.4225,2618.9,2618.8,1.62194]
[1729153643317,0.4225,2618.9,2618.8,1.24]
[1729153643512,0.80443,2618.9,2618.8,1.24]
[1729153643719,0.38194,2618.8,2618.7,0.4045]
[1729153644811,0.38194,2618.8,2618.6,2.02127]
[1729153645210,4.64195193,2618.9,2618.6,2.02127]
[1729153645415,0.38195,2618.8,2618.6,2.02127]
[1729153645627,0.38195,2618.8,2618.6,1.6393]
[1729153647944,4.64195193,2618.9,2618.7,1.24]
[1729153648132,5.02389193,2618.9,2618.7,1.24]
[1729153649342,0.38194,2618.8,2618.7,1.24]
[1729153650029,4.64195193,2618.9,2618.7,1.24]
[1729153650233,3.40195193,2618.9,2618.8,1.24]
[1729153650427,4.46550059,2618.9,2618.8,1.24]
[1729153650832,4.08357059,2618.9,2618.8,1.24]
[1729153651233,4.46550059,2618.9,2618.8,1.24]
[1729153651434,4.46550059,2618.9,2618.8,1.6471]
[1729153652341,4.08357059,2618.9,2618.8,1.6471]
[1729153652533,4.46560513,2618.9,2618.8,1.6471]
[1729153652736,4.08367513,2618.9,2618.8,1.6471]
[1729153653136,4.46562975,2618.9,2618.8,1.6471]
[1729153653338,4.08369975,2618.9,2618.8,1.6471]
[1729153653539,0.38199,2618.5,2618.3,1.0000218]
[1729153653750,0.95505,2618.3,2617.5,2.2264218]
[1729153654044,3.37284282,2617.7,2617.4,1.24]
[1729153654343,1.99120424,2617.5,2617.4,1.24]
[1729153654542,4.53997645,2617.6,2617.4,1.24]
[1729153654739,4.15785645,2617.6,2617.4,1.24]
[1729153655337,1.98952729,2617.5,2617.4,1.24]
[1729153656337,1.49137168,2617.5,2617.4,1.24]
[1729153657343,1.91707168,2617.6,2617.4,1.24]
[1729153657642,1.49137168,2617.6,2617.5,1.24]
[1729153658146,1.49137168,2617.7,2617.5,1.62213]
[1729153658337,1.49137168,2617.7,2617.6,1.6544]
[1729153661339,1.49137168,2617.8,2617.6,1.6544]
[1729153663443,3.11345168,2617.9,2617.6,1.6544]
[1729153664041,1.49137168,2617.9,2617.8,1.24]
[1729153664242,1.49137168,2618.1,2618.0,0.38206]
[1729153664441,1.49137168,2618.3,2618.2,0.38203]
[1729153664641,6.09655645,2618.6,2618.2,4.4478]
[1729153664642,1.49137168,2618.6,2618.2,4.4478]
[1729153664847,1.49137168,2618.7,2618.5,0.38198]
[1729153665050,1.49137168,2618.7,2618.6,0.422]
[1729153665652,1.49137168,2618.7,2618.6,2.04397]
[1729153665851,1.49137168,2618.9,2618.8,0.38194]
[1729153666148,1.49137168,2619.0,2618.8,1.24]
[1729153666455,1.49137168,2619.0,2618.8,4.82973]
[1729153666648,1.49137168,2619.0,2618.8,5.23023]
[1729153667157,1.49137168,2619.0,2618.8,4.8483]
[1729153667356,1.49137168,2619.0,2618.8,5.23023]
[1729153667854,1.49137168,2619.0,2618.8,3.99023]
[1729153668154,1.49137168,2619.0,2618.8,3.6083]
[1729153668452,1.49137168,2619.0,2618.8,3.99024]
[1729153668653,1.49137168,2619.0,2618.8,0.78244]
[1729153670548,1.49137168,2619.0,2618.8,0.4005]
[1729153670747,1.49137168,2619.0,2618.8,0.78244]
[1729153671847,1.49137168,2619.0,2618.9,0.38193]
[1729153672241,1.49137168,2619.0,2618.6,0.422]
[1729153672441,1.49137168,2619.0,2618.6,0.80397]
[1729153672442,1.48860276,2618.7,2618.6,0.80397]
[1729153672856,1.48860276,2618.7,2618.6,0.422]
[1729153673048,1.48860276,2618.7,2618.6,0.80397]
[1729153673255,1.48860276,2618.8,2618.6,0.422]
[1729153674052,1.48860276,2618.8,2618.6,0.80396]
[1729153674252,1.48860276,2618.8,2618.6,0.422]
[1729153674646,1.48860276,2618.8,2618.6,0.80397]
[1729153674955,1.48860276,2618.8,2618.6,0.422]
[1729153676050,1.48860276,2618.8,2618.6,0.80397]
[1729153677443,1.48860276,2618.8,2618.7,0.38196]
[1729153677644,1.48860276,2618.9,2618.8,0.38194]
[1729153677848,1.48860276,2619.1,2618.7,9.7062]
[1729153678155,1.48860276,2619.2,2619.1,0.3819]
[1729153678745,1.48860276,2619.3,2619.2,0.38189]
[1729153679048,1.48860276,2619.6,2619.5,0.38184]
[1729153679253,6.69697663,2620.4,2619.5,0.38184]
[1729153679254,1.48860276,2620.1,2619.9,0.38178]
[1729153679455,1.48860276,2620.1,2619.9,3.58958]
[1729153679647,2.38972729,2620.3,2619.9,3.58958]
[1729153679648,1.48860276,2620.2,2619.9,3.2078]
[1729153679955,2.77145729,2620.3,2619.9,3.2078]
[1729153679956,1.48860276,2620.1,2619.9,3.58958]
[1729153680159,1.48860276,2620.2,2619.9,3.58958]
[1729153680950,1.48860276,2620.2,2619.9,3.2078]
[1729153681149,1.48860276,2620.2,2620.0,0.38177]
[1729153681454,1.48860276,2620.2,2619.9,3.2078]
[1729153681659,1.48860276,2620.2,2619.9,3.58958]
[1729153681860,1.87034276,2620.2,2619.9,3.58958]
[1729153682161,1.87034276,2620.2,2619.8,0.80349]
[1729153682162,1.48860276,2620.1,2619.8,0.80349]
[1729153682557,1.48860276,2620.1,2619.9,0.38178]
[1729153683263,1.87034276,2620.2,2619.9,0.38178]
[1729153683461,1.48860276,2620.2,2620.0,0.38177]
[1729153683962,1.87035276,2620.2,2620.0,0.38177]
[1729153684157,1.48860276,2620.2,2620.1,0.38176]
[1729153684364,2.27053276,2620.3,2620.1,0.38176]
[1729153685261,1.88880276,2620.3,2619.9,3.2078]
[1729153685458,0.4002,2620.3,2620.2,0.38174]
[1729153687458,0.78193,2620.3,2620.2,0.38174]
[1729153687654,0.4002,2620.3,2620.2,0.38174]
[1729153692961,7.37640276,2621.0,2620.2,3.8168]
[1729153693166,0.4195,2620.8,2620.7,0.38167]
[1729153696467,0.4195,2620.8,2620.5,3.2078]
[1729153696667,0.4195,2620.8,2620.7,0.38167]
[1729153697465,0.80115,2620.8,2620.7,0.38167]
[1729153700166,0.80115,2620.8,2620.5,3.2078]
[1729153700167,0.4195,2620.8,2620.5,3.2078]
[1729153700370,0.38168,2620.7,2620.5,0.3817]
[1729153700568,0.38169,2620.6,2620.5,0.3817]
[1729153700781,0.38169,2620.6,2620.4,1.1941]
[1729153702172,0.4222,2620.7,2620.3,0.4094]
[1729153702372,0.38173,2620.3,2620.2,3.2078]
[1729153703174,3.2078,2620.6,2620.0,4.0011]
[1729153703175,0.38175,2620.2,2620.0,4.0011]
[1729153703473,0.80435,2620.2,2620.0,0.7933]
[1729153704364,0.38176,2620.1,2620.0,0.7933]
[1729153704569,0.4226,2620.2,2620.0,0.7933]
[1729153704761,0.4226,2620.2,2619.8,0.405]
[1729153704762,0.4226,2620.2,2619.7,3.2078]
[1729153704963,0.3958,2620.1,2619.6,0.8008]
[1729153705163,0.38179,2619.9,2619.6,0.8008]
[1729153705368,0.3818,2619.8,2619.6,0.8008]
[1729153706572,40.8,2620.0,2619.6,0.8008]
[1729153706772,0.3818,2619.8,2619.6,0.8008]
[1729153707368,40.8,2620.0,2619.6,0.8008]
[1729153707573,0.38179,2619.9,2619.6,0.8008]
[1729153707771,40.8,2620.0,2619.6,0.8008]
[1729153707979,0.38178,2620.0,2619.7,5.8878]
[1729153708672,0.38178,2620.0,2619.7,6.26961]
[1729153709477,0.38178,2620.0,2619.7,5.8878]
[1729153709781,0.38178,2620.0,2619.7,6.26961]
[1729153710477,0.4226,2620.2,2619.7,5.8878]
[1729153710772,0.4226,2620.2,2619.7,6.2696]
[1729153710773,0.38177,2620.0,2619.7,6.2696]
[1729153712782,40.8,2620.3,2619.7,5.8878]
[1729153712985,0.38177,2620.1,2619.8,0.38179]
[1729153713478,0.38177,2620.1,2619.7,5.8878]
[1729153713479,0.77312,2620.4,2620.1,0.38175]
[1729153713670,0.3987,2620.5,2620.2,3.4824]
[1729153714071,0.3987,2620.5,2620.3,0.38172]
[1729153714581,0.7804,2620.5,2620.3,0.38173]
[1729153714974,0.7804,2620.5,2620.2,3.86414]
[1729153715578,0.3987,2620.5,2620.2,3.4824]
[1729153715778,0.3987,2620.5,2620.3,0.38172]
[1729153715981,0.7804,2620.5,2620.3,0.38172]
[1729153716181,0.3987,2620.5,2620.3,0.38172]
[1729153717386,0.3987,2620.5,2620.2,3.4824]
[1729153717573,0.3987,2620.5,2620.4,0.38171]
[1729153717981,5.07807276,2620.7,2620.5,0.38169]
[1729153718177,4.69640276,2620.7,2620.5,0.38169]
[1729153718370,5.07807276,2620.7,2620.5,0.38169]
[1729153718577,3.58947,2620.7,2620.5,0.38169]
[1729153719279,5.07807276,2620.7,2620.5,0.38169]
[1729153719479,1.87027276,2620.7,2620.5,0.38169]
[1729153720178,1.48860276,2620.6,2620.2,6.6902]
[1729153720373,1.48860276,2620.6,2620.5,0.3817]
[1729153722284,1.98952729,2620.6,2620.5,0.3817]
[1729153723379,2.49215645,2620.7,2620.6,0.38168]
[1729153723681,1.491041,2620.7,2620.6,0.38168]
[1729153723878,1.491041,2620.7,2620.6,4.19768]
[1729153724080,1.9880549,2620.9,2620.6,3.816]
[1729153724081,1.491041,2620.8,2620.6,3.816]
[1729153724388,1.9880549,2620.8,2620.7,1.20687]
[1729153725185,1.9880549,2620.9,2620.7,0.8252]
[1729153725388,1.9880549,2620.9,2620.8,0.38165]
[1729153729289,1.9880549,2621.0,2620.9,0.38164]
[1729153731089,1.9880549,2621.0,2620.9,6.87684]
[1729153731284,1.49098293,2621.0,2620.9,6.87684]
[1729153734795,1.49098293,2621.0,2620.9,10.08464]
[1729153735887,1.49098293,2621.1,2620.9,6.26944]
[1729153736088,1.49098293,2621.1,2620.9,3.2078]
[1729153736089,1.49098293,2621.0,2620.9,3.2078]
[1729153736393,0.38162,2621.0,2620.9,3.2078]
[1729153736693,1.9880549,2621.0,2620.9,3.2078]
[1729153736894,1.9880549,2621.0,2620.9,3.58944]
[1729153737194,1.9880549,2621.1,2620.9,3.58944]
[1729153737496,1.9880549,2621.1,2620.9,3.58943]
[1729153737790,43.1696649,2621.1,2620.9,3.58943]
[1729153737986,43.1696749,2621.1,2620.9,3.2078]
[1729153739390,1.87129486,2621.0,2620.9,3.2078]
[1729153739690,43.1696749,2621.1,2620.9,3.2078]
[1729153739890,1.9880549,2621.0,2620.9,3.2078]
[1729153740093,41.18162,2621.1,2620.9,3.2078]
[1729153740094,43.1696749,2621.1,2620.9,3.2078]
[1729153740393,2.3696749,2621.1,2620.9,3.2078]
[1729153740792,1.9880549,2621.1,2620.9,3.58944]
[1729153741090,1.48967045,2621.0,2620.9,3.58944]
[1729153741989,1.48967045,2621.0,2620.9,6.26944]
[1729153742184,1.48967045,2621.0,2620.9,10.08464]
[1729153742594,1.48967045,2621.1,2621.0,0.38162]
[1729153742995,1.48967045,2621.1,2621.0,4.59452]
[1729153743493,1.87737045,2621.3,2621.0,4.2129]
[1729153743695,1.87737045,2621.3,2621.2,3.0616]
[1729153744195,1.48967045,2621.3,2621.2,3.0616]
[1729153744390,1.48967045,2621.4,2621.3,0.38158]
[1729153744585,1.48967045,2621.4,2621.3,1.18108]
[1729153744893,1.48967045,2621.4,2621.3,0.7995]
[1729153745089,2.3696149,2621.5,2621.2,3.06159]
[1729153745292,1.48908805,2621.3,2621.2,3.0616]
[1729153746096,1.48908805,2621.4,2621.2,2.68]
[1729153746296,1.48908805,2621.4,2621.3,0.38158]
[1729153748291,1.48908805,2621.4,2621.2,3.06159]
[1729153748792,1.48908805,2621.4,2621.3,0.38158]
[1729153748992,1.48908805,2621.4,2621.2,2.68]
[1729153749294,1.48908805,2621.4,2621.2,3.06159]
[1729153749599,1.48908805,2621.4,2621.3,0.38158]
[1729153750288,1.48908805,2621.4,2621.2,2.68]
[1729153750488,1.48908805,2621.4,2621.2,3.06158]
[1729153750892,1.48908805,2621.4,2621.2,2.68]
[1729153751098,1.90048805,2621.3,2621.1,0.8178]
[1729153751301,1.90048805,2621.3,2621.0,3.0777]
[1729153751302,2.28206805,2621.3,2621.0,3.0777]
[1729153751595,0.418,2621.2,2621.1,0.38161]
[1729153752892,1.90708805,2621.2,2621.1,0.38161]
[1729153754193,1.90757116,2621.2,2621.1,0.38161]
[1729153754599,0.418,2621.2,2621.0,3.06161]
[1729153754796,1.48959411,2621.1,2621.0,3.06161]
[1729153755902,2.4060549,2621.2,2621.0,3.06161]
[1729153756102,1.9880549,2621.1,2621.0,3.06161]
[1729153756292,1.9880549,2621.1,2621.0,2.68]
[1729153756489,1.9880549,2621.1,2620.9,3.58944]
[1729153756690,1.49022716,2621.0,2620.9,3.58944]
[1729153757094,1.9880549,2621.1,2620.9,3.58944]
[1729153757303,1.9880549,2621.1,2620.9,3.58943]
[1729153757801,1.9880549,2621.1,2621.0,0.38162]
[1729153758193,2.91015645,2621.2,2621.1,0.38161]
[1729153758394,2.91015645,2621.2,2621.0,0.38161]
[1729153760102,2.49215645,2621.1,2621.0,0.38161]
[1729153763098,0.418,2621.2,2621.0,0.38161]
[1729153763403,0.79961,2621.2,2620.9,3.58943]
[1729153763599,2.48815017,2621.0,2620.9,3.58943]
[1729153764898,1.99197374,2621.0,2620.9,6.26944]
[1729153766299,2.48815017,2621.1,2621.0,0.38162]
[1729153766802,2.48815017,2621.1,2621.0,0.78232]
[1729153768107,0.418,2621.2,2621.1,0.38161]
[1729153769013,0.418,2621.2,2621.1,0.78611]
[1729153769707,0.418,2621.2,2621.1,0.4045]
[1729153770010,0.418,2621.2,2621.1,0.78611]
[1729153770510,0.418,2621.2,2621.1,0.4045]
[1729153770902,0.418,2621.2,2621.0,0.4007]
[1729153771112,0.418,2621.2,2620.9,5.8878]
[1729153771113,4.09012583,2621.2,2620.9,3.2078]
[1729153771304,4.09012583,2621.2,2621.0,0.38162]
[1729153771305,3.79032282,2621.2,2621.0,0.38162]
[1729153772008,3.79032282,2621.2,2620.9,3.58943]
[1729153772405,0.4166,2621.1,2620.9,3.58943]
[1729153772903,0.4166,2621.1,2621.0,0.38162]
[1729153773098,3.40732282,2621.1,2621.0,0.38162]
[1729153774315,4.08905551,2621.1,2621.0,0.38162]
[1729153774905,3.40732282,2621.1,2621.0,0.38162]
[1729153775303,3.40732282,2621.1,2620.9,3.2078]
[1729153775606,3.40732282,2621.1,2621.0,0.38162]
[1729153775803,3.40732282,2621.1,2621.0,1.62162]
[1729153777523,3.40732282,2621.1,2621.0,1.24]
[1729153777524,3.37233282,2621.1,2621.0,1.24]
[1729153777713,4.05424133,2621.1,2621.0,1.24]
[1729153778223,3.67263133,2621.1,2621.0,1.24]
[1729153778729,4.05424133,2621.1,2620.9,1.24]
[1729153779025,4.05424133,2621.1,2620.7,0.8224]
[1729153779026,9.12539707,2621.0,2620.7,0.4181]
[1729153779221,3.37450422,2620.8,2620.7,1.24]
[1729153779524,2.99285422,2620.8,2620.7,1.24]
[1729153779827,3.40495422,2620.8,2620.7,1.24]
[1729153780520,0.4121,2620.8,2620.7,1.62167]
[1729153782123,0.4121,2620.8,2620.7,1.24]
[1729153782418,0.4121,2620.8,2620.7,1.62167]
[1729153783720,0.4121,2620.8,2620.6,0.4176]
[1729153784022,0.4121,2620.8,2620.7,1.62167]
[1729153784610,1.6521,2620.8,2620.6,0.4176]
[1729153784823,0.4121,2620.8,2620.7,1.24]
[1729153785131,0.4121,2620.8,2620.7,1.62167]
[1729153785517,0.4121,2620.8,2620.7,0.38167]
[1729153785722,0.4121,2620.8,2620.7,1.62167]
[1729153788424,3.37448422,2621.0,2620.7,1.62167]
[1729153788726,3.38205422,2621.0,2620.9,1.24]
[1729153788928,3.76367422,2621.0,2620.9,1.24]
[1729153790035,5.00367422,2621.0,2620.8,1.6256]
[1729153790330,5.00369422,2621.0,2620.8,1.6256]
[1729153791529,0.38164,2620.9,2620.8,1.6256]
[1729153792030,5.00369422,2621.0,2620.8,1.6256]
[1729153792231,2.99285422,2620.9,2620.8,2.00725]
[1729153792424,5.00369422,2621.0,2620.8,2.00725]
[1729153792732,5.00369422,2621.0,2620.8,1.6256]
[1729153794633,5.00369422,2621.0,2620.8,2.00725]
[1729153796430,4.62205422,2621.0,2620.8,1.6256]
[1729153796631,5.00368422,2621.0,2620.8,2.00725]
[1729153796932,4.62205422,2621.0,2620.8,2.00725]
[1729153797130,5.00368422,2621.0,2620.9,0.4016]
[1729153797329,4.44483635,2621.0,2620.9,0.4016]
[1729153798820,4.44483635,2621.0,2620.9,1.6416]
[1729153799026,4.44482635,2621.0,2620.9,1.6416]
[1729153799225,4.06320635,2621.0,2620.9,1.6416]
[1729153799534,4.44482635,2621.0,2620.9,2.02324]
[1729153799729,3.76367422,2621.0,2620.9,1.6416]
[1729153800235,4.44492999,2621.0,2620.9,1.6416]
[1729153803832,5.4397062,2621.0,2620.9,0.4016]
[1729153805426,6.6797062,2621.0,2620.9,0.4016]
[1729153805935,10.01920395,2621.0,2620.9,0.4016]
[1729153806136,6.03157352,2621.0,2620.9,0.4016]
[1729153809137,10.01896562,2621.0,2620.9,0.4016]
[1729153809333,6.03157352,2621.0,2620.9,0.4016]
[1729153811831,5.6821266,2621.0,2620.9,0.4016]
[1729153812240,4.4421266,2621.0,2620.9,0.4016]
[1729153812629,4.44228328,2621.0,2620.9,0.4016]
[1729153812830,1.45207577,2621.0,2620.9,0.4016]
[1729153813031,4.4422823,2621.0,2620.9,0.4016]
[1729153813834,0.68125577,2621.0,2620.9,2.02324]
[1729153814039,2.99020653,2621.2,2620.9,5.4568]
[1729153814230,44.18820653,2621.3,2621.2,0.3816]
[1729153814539,42.26082739,2621.3,2621.2,1.6216]
[1729153815135,45.25150281,2621.3,2621.2,1.6216]
[1729153815532,45.25150281,2621.3,2621.2,0.3816]
[1729153815729,42.26082739,2621.3,2621.2,0.3816]
[1729153815939,45.25160644,2621.3,2621.2,0.3816]
[1729153816645,44.87002644,2621.3,2621.2,1.6216]
[1729153817138,45.25160644,2621.3,2621.2,1.6216]
[1729153817340,44.47202644,2621.3,2621.2,1.6216]
[1729153817945,44.85360644,2621.3,2621.2,1.6216]
[1729153818137,44.47202644,2621.3,2621.2,1.6216]
[1729153818337,41.48124739,2621.3,2621.2,1.6216]
[1729153818745,0.68124739,2621.3,2621.2,5.4368]
[1729153818936,0.68124739,2621.4,2621.3,0.38158]
[1729153819138,41.48124739,2621.4,2621.3,2.02088]
[1729153820644,0.68124739,2621.4,2621.3,2.02088]
[1729153820846,0.68124739,2621.5,2621.4,0.38157]
[1729153821047,0.68124739,2621.5,2621.4,2.02597]
[1729153821349,3.17205681,2621.5,2621.4,5.84037]
[1729153821653,0.68124739,2621.5,2621.4,5.4588]
[1729153821846,1.49449048,2621.5,2621.4,5.84037]
[1729153823451,0.68036781,2621.6,2621.4,5.84037]
[1729153823452,1.49449048,2621.6,2621.4,5.84037]
[1729153823657,1.99270086,2621.7,2621.6,0.38154]
[1729153823854,1.99270086,2621.7,2621.6,1.62154]
[1729153824450,1.99270086,2621.8,2621.7,0.38152]
[1729153824755,1.99270086,2621.8,2621.7,2.00932]
[1729153825550,1.99270086,2621.8,2621.7,5.21712]
[1729153826553,1.99270086,2621.9,2621.7,5.21712]
[1729153826753,1.99270086,2621.9,2621.8,1.6402]
[1729153826957,3.86987264,2622.0,2621.8,1.6402]
[1729153827849,3.48839264,2622.0,2621.8,1.6402]
[1729153828054,3.48839264,2622.0,2621.9,1.24]
[1729153828249,3.86987264,2622.0,2621.9,1.24]
[1729153828652,3.48839264,2622.0,2621.9,1.24]
[1729153829355,5.94816264,2622.1,2621.9,1.62149]
[1729153829557,0.38148,2622.0,2621.9,1.24]
[1729153829755,5.56669264,2622.1,2621.9,1.24]
[1729153829958,5.94817264,2622.1,2621.9,1.24]
[1729153830165,0.38148,2622.0,2621.9,1.24]
[1729153830357,4.32669264,2622.1,2621.9,1.24]
[1729153830558,5.56669264,2622.1,2622.0,0.38148]
[1729153830866,5.94815264,2622.1,2621.9,1.24]
[1729153831059,5.56669264,2622.1,2621.9,1.24]
[1729153831366,5.94815264,2622.1,2622.0,0.38148]
[1729153831566,5.94815264,2622.1,2621.9,1.24]